fUST/lending_fUST_20250806
["ID","MTS","AMOUNT","RATE_DAILY","PERIOD"]
[377483724,1754425846460,-460.0,0.00029589,2]
[377483725,1754425846469,-460.0,0.00029589,2]
[377483727,1754425846479,-518.21,0.00029589,2]
[377483728,1754425846488,-460.0,0.00029589,2]
[377483729,1754425846498,-460.0,0.00029589,2]
[377483730,1754425846507,-828.63,0.00029589,2]
[377483731,1754425846516,-460.0,0.00029589,2]
[377483732,1754425846526,-460.0,0.00029589,2]
[377483734,1754425846536,-840.23,0.00029589,2]
[377483735,1754425846546,-460.0,0.00029589,2]
[377483736,1754425846555,-641.07,0.00029589,2]
[377483737,1754425846564,-923.71,0.00029589,2]
[377483738,1754425846573,-2971.49,0.00029589,2]
[377483739,1754425846583,-460.0,0.00029589,2]
[377483740,1754425846593,-2220.96,0.00029589,2]
[377483741,1754425846602,-242.29004992,0.00029589,2]
[377483742,1754425846611,-460.0,0.00029589,2]
[377483743,1754425846620,-692.63,0.00029589,2]
[377483744,1754425846629,-460.0,0.00029589,2]
[377483745,1754425846639,-460.0,0.00029589,2]
[377483746,1754425846648,-460.0,0.00029589,2]
[377483747,1754425846660,-460.0,0.00029589,2]
[377483748,1754425846669,-460.0,0.00029589,2]
[377483749,1754425846679,-460.0,0.00029589,2]
[377483750,1754425846689,-929.97,0.00029589,2]
[377483751,1754425846700,-460.0,0.00029589,2]
[377483752,1754425846710,-1117.28,0.00029589,2]
[377483753,1754425846719,-677.37,0.00029589,2]
[377483754,1754425846728,-460.0,0.00029589,2]
[377483755,1754425846737,-460.0,0.00029589,2]
[377483756,1754425846747,-460.0,0.00029589,2]
[377483757,1754425846756,-460.0,0.00029589,2]
[377483758,1754425846766,-460.0,0.00029589,2]
[377483759,1754425846776,-31796.96,0.00029589,2]
[377483760,1754425846785,-649.65,0.00029589,2]
[377483761,1754425846794,-2633.74,0.00029589,2]
[377483762,1754425846803,-632.12,0.00029589,2]
[377483763,1754425846812,-460.0,0.00029589,2]
[377483764,1754425846822,-152.0,0.00029642,15]
[377483765,1754425846832,-152.0,0.00029742,15]
[377483766,1754425846843,-162.11134969,0.00029819,2]
[377483767,1754425846852,-152.0,0.00029842,15]
[377483768,1754425846861,-460.0,0.00029854,2]
[377483769,1754425846870,-539.03547486,0.00029863,2]
[377483770,1754425846879,-352.68,0.00029863,2]
[377483771,1754425846889,-460.0,0.00029863,2]
[377483772,1754425846898,-460.0,0.00029863,2]
[377483773,1754425846907,-518.21,0.00029863,2]
[377483774,1754425846916,-460.0,0.00029863,2]
[377483775,1754425846926,-460.0,0.00029863,2]
[377483776,1754425846935,-828.63,0.00029863,2]
[377483777,1754425846945,-460.0,0.00029863,2]
[377483778,1754425846954,-460.0,0.00029863,2]
[377483779,1754425846965,-840.23,0.00029863,2]
[377483780,1754425846974,-460.0,0.00029863,2]
[377483781,1754425846983,-641.07,0.00029863,2]
[377483782,1754425846992,-923.71,0.00029863,2]
[377483783,1754425847001,-2971.49,0.00029863,2]
[377483784,1754425847010,-460.0,0.00029863,2]
[377483785,1754425847019,-2220.96,0.00029863,2]
[377483786,1754425847028,-460.0,0.00029863,2]
[377483787,1754425847037,-692.63,0.00029863,2]
[377483788,1754425847046,-460.0,0.00029863,2]
[377483789,1754425847055,-460.0,0.00029863,2]
[377483790,1754425847063,-460.0,0.00029863,2]
[377483791,1754425847072,-460.0,0.00029863,2]
[377483792,1754425847081,-251.41478979,0.00029863,2]
[377483793,1754425847090,-460.0,0.00029863,2]
[377483794,1754425847099,-929.97,0.00029863,2]
[377483795,1754425847108,-460.0,0.00029863,2]
[377483796,1754425847117,-1117.28,0.00029863,2]
[377483797,1754425847126,-677.37,0.00029863,2]
[377483798,1754425847135,-460.0,0.00029863,2]
[377483799,1754425847143,-460.0,0.00029863,2]
[377483800,1754425847152,-460.0,0.00029863,2]
[377483801,1754425847161,-460.0,0.00029863,2]
[377483802,1754425847170,-460.0,0.00029863,2]
[377483803,1754425847181,-649.65,0.00029863,2]
[377483804,1754425847191,-31796.96,0.00029863,2]
[377483805,1754425847200,-2633.74,0.00029863,2]
[377483806,1754425847209,-632.12,0.00029863,2]
[377483807,1754425847220,-460.0,0.00029863,2]
[377483808,1754425847230,-133352.97074851,0.000299,2]
[377483809,1754425847240,-152.0,0.00029942,15]
[377483810,1754425847249,-99212.71022175,0.0003,30]
[377483811,1754425847262,-216.4206905,0.0003,30]
[377483812,1754425847274,-312.16666667,0.0003,30]
[377483813,1754425847283,-12655.02535889,0.0003,30]
[377483814,1754425847292,-842.25606042,0.0003,30]
[377483815,1754425847301,-4000.0,0.0003,4]
[377483816,1754425847310,-160.0,0.0003,30]
[377483817,1754425847320,-834.63511551,0.00030013,2]
[377483818,1754425847330,-152.0,0.00030042,15]
[377483819,1754425847340,-2200.60699428,0.00030042,2]
[377483820,1754425847351,-1572.40870435,0.00030047,2]
[377483821,1754425847361,-11152.46134822,0.0003013,5]
[377483822,1754425847370,-460.0,0.00030136,2]
[377483823,1754425847380,-460.0,0.00030136,2]
[377483824,1754425847390,-518.21,0.00030136,2]
[377483825,1754425847400,-460.0,0.00030136,2]
[377483826,1754425847411,-367.08,0.00030136,2]
[377483827,1754425847420,-828.63,0.00030136,2]
[377483828,1754425847430,-460.0,0.00030136,2]
[377483829,1754425847439,-460.0,0.00030136,2]
[377483830,1754425847449,-840.23,0.00030136,2]
[377483831,1754425847459,-460.0,0.00030136,2]
[377483832,1754425847468,-641.07,0.00030136,2]
[377483833,1754425847477,-923.71,0.00030136,2]
[377483834,1754425847487,-2971.49,0.00030136,2]
[377483835,1754425847496,-460.0,0.00030136,2]
[377483836,1754425847506,-2220.96,0.00030136,2]
[377483837,1754425847516,-460.0,0.00030136,2]
[377483838,1754425847525,-692.63,0.00030136,2]
[377483839,1754425847534,-460.0,0.00030136,2]
[377483840,1754425847544,-460.0,0.00030136,2]
[377483841,1754425847553,-460.0,0.00030136,2]
[377483842,1754425847562,-460.0,0.00030136,2]
[377483843,1754425847571,-460.0,0.00030136,2]
[377483844,1754425847581,-929.97,0.00030136,2]
[377483845,1754425847591,-460.0,0.00030136,2]
[377483846,1754425847600,-1117.28,0.00030136,2]
[377483847,1754425847609,-677.37,0.00030136,2]
[377483848,1754425847619,-460.0,0.00030136,2]
[377483849,1754425847628,-460.0,0.00030136,2]
[377483850,1754425847638,-460.0,0.00030136,2]
[377483851,1754425847647,-460.0,0.00030136,2]
[377483852,1754425847657,-460.0,0.00030136,2]
[377483853,1754425847666,-649.65,0.00030136,2]
[377483854,1754425847675,-31796.96,0.00030136,2]
[377483855,1754425847685,-2633.74,0.00030136,2]
[377483856,1754425847694,-632.12,0.00030136,2]
[377483857,1754425847703,-460.0,0.00030136,2]
[377483858,1754425847712,-54614.5168398,0.00030137,2]
[377483859,1754425847721,-152.0,0.00030142,15]
[377483860,1754425847731,-90000.0,0.000302,10]
[377483861,1754425847740,-1000.0,0.000302,6]
[377483862,1754425847749,-216.4206905,0.000302,10]
[377483863,1754425847759,-961.20172144,0.000302,2]
[377483864,1754425847768,-151.0,0.000302,7]
[377483865,1754425847778,-151.0,0.000302,7]
[377483866,1754425847787,-312.16666667,0.000302,10]
[377483867,1754425847797,-12655.02535889,0.000302,10]
[377483868,1754425847807,-1370.101978,0.000302,7]
[377483869,1754425847817,-1370.101978,0.000302,7]
[377483870,1754425847826,-151.0,0.000302,7]
[377483871,1754425847836,-842.25606042,0.000302,10]
[377483872,1754425847846,-160.0,0.000302,10]
[377483873,1754425847856,-151.653682,0.000302,7]
[377483874,1754425847866,-151.0,0.000302,7]
[377483875,1754425847875,-151.0,0.000302,7]
[377483876,1754425847884,-152.0,0.00030242,15]
[377483877,1754425847894,-151.0,0.00030282,2]
[377483878,1754425847904,-500.0,0.000303,5]
[377483879,1754425847915,-500.0,0.000303,5]
[377483880,1754425847924,-510.60697333,0.000303,5]
[377483881,1754425847934,-7365.94360047,0.000303,2]
[377483882,1754425847944,-152.0,0.00030342,15]
[377483883,1754425847953,-9842.11469012,0.000304,2]
[377483884,1754425847965,-153.885592,0.000304,7]
[377483885,1754425847976,-151.0,0.000304,7]
[377483886,1754425847986,-151.0,0.000304,7]
[377483887,1754425847995,-151.0,0.000304,7]
[377483888,1754425848004,-156.496264,0.000304,7]
[377483889,1754425848013,-151.0,0.000304,7]
[377483890,1754425848022,-151.0,0.000304,7]
[377483891,1754425848031,-151.0,0.000304,7]
[377483892,1754425848140,-629443.25138799,0.000304,4]
[377483893,1754425849369,-160.0,0.0002635,3]
[377483894,1754425849379,-800.19,0.00027397,2]
[377483895,1754425849387,-800.19,0.00027671,2]
[377483896,1754425849396,-800.19,0.00027945,2]
[377483897,1754425849405,-800.19,0.00028219,2]
[377483898,1754425849414,-800.19,0.00028493,2]
[377483899,1754425849424,-800.19,0.00028767,2]
[377483900,1754425849433,-800.19,0.00029041,2]
[377483901,1754425849442,-8268.32527179,0.00029842,2]
[377483902,1754425849451,-160.0,0.000302,10]
[377483903,1754425849460,-85102.01028604,0.000304,4]
[377483904,1754425850069,163.62,0.00025,7]
[377483905,1754425850108,5000.0,0.00025205,5]
[377483906,1754425859050,5000.0,0.00025205,5]
[377483907,1754425874683,5000.0,0.00025205,5]
[377483908,1754425890388,5000.0,0.00025205,5]
[377483910,1754425902734,-300.0,0.00024038,2]
[377483911,1754425902757,-128.85235838,0.00024038,2]
[377483912,1754425905607,5000.0,0.00025205,5]
[377483913,1754425919391,549.280246,0.00013699,2]
[377483914,1754425919600,549.280246,0.00020187,2]
[377483915,1754425921380,5000.0,0.00025205,5]
[377483917,1754425939580,5000.0,0.00025205,5]
[377483918,1754425943586,160.0,0.0002,3]
[377483919,1754425954771,5000.0,0.00025205,5]
[377483920,1754425965980,113.56996946,0.00024028,10]
[377483921,1754425966012,166.61003054,0.00024028,10]
[377483922,1754425969948,5000.0,0.000252,8]
[377483923,1754425977953,233.48,0.00024028,10]
[377483924,1754425985622,5000.0,0.000252,8]
[377483925,1754425989719,194.57,0.00024028,10]
[377483926,1754425994124,-225.0,0.00023317,2]
[377483927,1754426001136,218.18,0.00024028,10]
[377483928,1754426002370,5000.0,0.000252,8]
[377483929,1754426011556,181.82,0.00024028,10]
[377483930,1754426017861,5000.0,0.000252,8]
[377483931,1754426022880,151.51,0.00024028,10]
[377483932,1754426033591,5000.0,0.000252,8]
[377483933,1754426034638,757.59,0.00024028,10]
[377483935,1754426049229,5000.0,0.000252,8]
[377483936,1754426051544,-65.154548,0.00023317,2]
[377483937,1754426051569,-363.69781038,0.0002371,2]
[377483938,1754426062804,-300.0,0.0002371,2]
[377483939,1754426064519,5000.0,0.000252,8]
[377483940,1754426080831,5000.0,0.000252,8]
[377483941,1754426095693,5000.0,0.000252,8]
[377483942,1754426112471,5000.0,0.000252,8]
[377483943,1754426124382,-71.32693862,0.0002371,2]
[377483944,1754426124406,-357.52541976,0.00023938,2]
[377483945,1754426128444,5000.0,0.000252,8]
[377483946,1754426144260,3199.78916622,0.000252,8]
[377483947,1754426217945,-167.02182767,0.00024036,2]
[377483948,1754426221539,-132.97817233,0.00024036,2]
[377483949,1754426221563,-20.30127832,0.00024036,2]
[377483950,1754426223077,-157.66843132,0.00023801,2]
[377483951,1754426224703,-237.7929387,0.00023801,2]
[377483952,1754426226258,-294.33097484,0.00023801,2]
[377483953,1754426228310,-300.0,0.00023801,2]
[377483954,1754426232182,-10.20765514,0.00023801,2]
[377483955,1754426232208,-288.46277616,0.00024035,2]
[377483956,1754426234825,-11.53722384,0.00024035,2]
[377483957,1754426234852,-179.75490603,0.00024036,2]
[377483958,1754426238650,-99.94381565,0.00024036,2]
[377483959,1754426238676,-95.57922043,0.00024036,2]
[377483960,1754426241314,-176.676734,0.00024036,2]
[377483961,1754426243491,-187.18672803,0.00024036,2]
[377483962,1754426246691,160.0,0.0002,3]
[377483963,1754426247746,-159.58,0.00024036,2]
[377483964,1754426251990,363.87,0.00024026,10]
[377483965,1754426252850,-272.69817542,0.00024036,2]
[377483966,1754426256731,-262.13889514,0.00024036,2]
[377483967,1754426259422,-46.14024698,0.00024036,2]
[377483968,1754426259447,-169.73793038,0.00024036,2]
[377483969,1754426261454,-167.42604455,0.00024036,2]
[377483970,1754426261477,-335.98491326,0.00024036,2]
[377483971,1754426267956,-164.01508674,0.00024036,2]
[377483972,1754426267981,-12.38009174,0.00024036,2]
[377483973,1754426270568,-162.53484268,0.00024036,2]
[377483974,1754426273228,-325.08506558,0.00024036,2]
[377483975,1754426273250,-307.77842757,0.00024036,2]
[377483976,1754426276290,-192.22157243,0.00024036,2]
[377483977,1754426276313,-97.03573364,0.00024036,2]
[377483978,1754426280141,-238.94917962,0.00024036,2]
[377483980,1754426282900,-211.3437936,0.00024026,3]
[377483981,1754426285626,163.94,0.00025,7]
[377483982,1754426286289,-247.56997921,0.00023936,2]
[377483983,1754426287929,-161.3840031,0.00023315,2]
[377483984,1754426292184,-168.30838753,0.00023315,2]
[377483985,1754426292207,-34.16084963,0.00023936,2]
[377483986,1754426295945,-314.91008257,0.00023936,2]
[377483987,1754426298639,-164.05477685,0.00023936,2]
[377483988,1754426303289,-160.0,0.00023936,2]
[377483989,1754426307115,-170.02754429,0.00023936,2]
[377483990,1754426310206,-162.01141462,0.00023936,2]
[377483991,1754426312883,-78.43229171,0.00023936,2]
[377483992,1754426312909,-127.32654451,0.00024026,3]
[377483993,1754426315837,-138.19966189,0.00024026,3]
[377483994,1754426315861,-238.43,0.00024026,3]
[377483995,1754426315884,-83.37033811,0.00024026,3]
[377483996,1754426328899,-321.80033811,0.00024026,3]
[377483997,1754426332703,-172.35598676,0.00024026,3]
[377483998,1754426339801,-137.81333702,0.00024026,3]
[377483999,1754426339840,-293.50152834,0.00024035,2]
[377484000,1754426341852,-236.01478245,0.00024035,2]
[377484001,1754426341879,-61.98914764,0.00024035,2]
[377484002,1754426345056,-199.1146921,0.00024034,2]
[377484003,1754426346661,-100.8853079,0.00024034,2]
[377484004,1754426346814,-158.46309331,0.00024034,2]
[377484005,1754426349024,-141.53690669,0.00024034,2]
[377484006,1754426349048,-46.60197275,0.00024035,2]
[377484007,1754426351227,-255.48667945,0.00024035,2]
[377484008,1754426352941,-135.92220016,0.00024035,2]
[377484009,1754426352964,-15.66122267,0.00024035,2]
[377484010,1754426355037,-266.740566,0.00024035,2]
[377484011,1754426357038,-217.59821133,0.00024035,2]
[377484012,1754426357061,-57.50581675,0.00024035,2]
[377484013,1754426358812,-192.23389594,0.00023935,2]
[377484014,1754426360343,-141.8484252,0.00023935,2]
[377484015,1754426360368,-136.44837832,0.00024035,2]
[377484016,1754426361914,-277.18971478,0.00024035,2]
[377484017,1754426364647,-28.85609015,0.00024035,2]
[377484018,1754426364670,-206.15389929,0.00024035,2]
[377484019,1754426368535,-293.84610071,0.00024035,2]
[377484020,1754426368558,-86.81271191,0.00024035,2]
[377484021,1754426370079,-291.01098114,0.00024035,2]
[377484022,1754426372074,-122.17630695,0.00024035,2]
[377484023,1754426372101,-132.32163755,0.00024035,2]
[377484024,1754426375120,-318.08310726,0.00024035,2]
[377484025,1754426378582,-49.59525519,0.00024035,2]
[377484026,1754426378606,-114.45952166,0.00024035,2]
[377484027,1754426380121,-296.32496013,0.00024035,2]
[377484028,1754426382136,-89.21551821,0.00024035,2]
[377484029,1754426382161,-105.73275128,0.00024035,2]
[377484030,1754426385766,-273.30277764,0.00024035,2]
[377484031,1754426390925,-154.25657127,0.00023935,2]
[377484032,1754426396493,-9.79820558,0.00023935,2]
[377484033,1754426396515,-120.96447108,0.00024035,2]
[377484034,1754426396538,-184.20327834,0.00024035,2]
[377484035,1754426398626,-315.79672166,0.00024035,2]
[377484036,1754426398652,-2.73457801,0.00024035,2]
[377484037,1754426401464,-219.54852422,0.00024035,2]
[377484040,1754426404236,-194.05105617,0.00024034,2]
[377484041,1754426405879,-105.94894383,0.00024034,2]
[377484042,1754426405911,-45.93105617,0.00024034,2]
[377484043,1754426409657,-151.88,0.00024034,2]
[377484044,1754426412471,-176.22863228,0.00024034,2]
[377484045,1754426416118,-266.42511004,0.00024034,2]
[377484046,1754426418174,-313.65087104,0.00023672,2]
[377484047,1754426421832,-302.67911116,0.00023672,2]
[377484048,1754426424547,-244.39572871,0.00023672,2]
[377484049,1754426426166,-154.05,0.00023672,2]
[377484050,1754426427886,-179.37001473,0.00023672,2]
[377484051,1754426430978,-171.940305,0.00023672,2]
[377484052,1754426435923,-171.52,0.00023672,2]
[377484053,1754426436981,1052.4351596,0.000252,8]
[377484054,1754426440156,-151.88,0.00023672,2]
[377484055,1754426443298,-470.62998527,0.00023672,2]
[377484056,1754426445014,-204.10201505,0.00023672,2]
[377484057,1754426448795,-155.65,0.00023672,2]
[377484058,1754426450329,-203.97573463,0.00023672,2]
[377484059,1754426453152,1153.78200032,0.000252,8]
[377484060,1754426453218,-187.07,0.00023672,2]
[377484061,1754426454525,-6933.0,0.00023672,2]
[377484062,1754426454727,-156.08623441,0.00023672,2]
[377484063,1754426454751,-167.14654708,0.00024034,2]
[377484064,1754426456273,-162.96347857,0.00024034,2]
[377484065,1754426458432,-229.42517586,0.00024034,2]
[377484066,1754426458456,-69.27695233,0.00024034,2]
[377484067,1754426463590,-116.72304767,0.00024034,2]
[377484068,1754426463615,-123.0538113,0.00024034,2]
[377484069,1754426466215,-42.15653641,0.00024034,2]
[377484070,1754426466241,-205.77413747,0.00024034,2]
[377484071,1754426468351,877.24199469,0.000252,8]
[377484072,1754426468859,-300.0,0.00024033,2]
[377484073,1754426468885,-68.62309969,0.00024034,2]
[377484074,1754426472615,-202.77019644,0.00024034,2]
[377484075,1754426474333,-22.8325664,0.00024034,2]
[377484076,1754426474356,-343.43901912,0.00024034,2]
[377484077,1754426477078,-156.56098088,0.00024034,2]
[377484078,1754426477103,-42.49613826,0.00024034,2]
[377484079,1754426479841,-167.69,0.00024034,2]
[377484080,1754426481422,-211.222188,0.00024034,2]
[377484081,1754426485265,-78.59167374,0.00024034,2]
[377484082,1754426485288,-114.86076729,0.00024034,2]
[377484083,1754426489740,-159.12016755,0.00023704,2]
[377484084,1754426528934,-1300.0,0.00023704,2]
[377484085,1754426551143,160.0,0.0002,3]
[377484086,1754426603980,-197.81543438,0.00023312,2]
[377484087,1754426604002,-160.0,0.00023704,2]
[377484088,1754426604026,-142.18456562,0.00023704,2]
[377484089,1754426621033,-13.07331403,0.00023704,2]
[377484090,1754426621063,-238.43,0.00024023,3]
[377484091,1754426621092,-715.31,0.00024023,3]
[377484092,1754426621120,-300.0,0.00024032,2]
[377484093,1754426621148,-1200.0,0.00024033,2]
[377484094,1754426637662,1356.82825868,0.000252,8]
[377484095,1754426642175,300.0,0.00024032,2]
[377484096,1754426652942,650.63509,0.00023585,2]
[377484097,1754426669908,2286.34348264,0.000252,8]
[377484098,1754426672273,260.44108438,0.00024032,2]
[377484099,1754426674010,500.0,0.00024032,2]
[377484100,1754426674039,500.0,0.00024032,2]
[377484101,1754426674066,500.0,0.00024032,2]
[377484102,1754426674098,500.0,0.00024032,2]
[377484103,1754426674126,500.0,0.00024032,2]
[377484104,1754426674156,500.0,0.00024032,2]
[377484105,1754426674183,500.0,0.00024032,2]
[377484106,1754426674210,500.0,0.00024032,2]
[377484107,1754426674242,500.0,0.00024032,2]
[377484108,1754426674272,500.0,0.00024032,2]
[377484109,1754426674299,500.0,0.00024032,2]
[377484110,1754426674327,500.0,0.00024032,2]
[377484111,1754426674354,500.0,0.00024032,2]
[377484112,1754426674382,160.15433453,0.00024032,2]
[377484113,1754426674410,500.0,0.00024032,2]
[377484114,1754426674438,500.0,0.00024032,2]
[377484115,1754426674471,500.0,0.00024032,2]
[377484116,1754426674499,500.0,0.00024032,2]
[377484117,1754426674526,500.0,0.00024032,2]
[377484118,1754426674554,500.0,0.00024032,2]
[377484119,1754426674582,500.0,0.00024032,2]
[377484120,1754426674610,572.62349638,0.00024032,2]
[377484121,1754426674641,500.0,0.00024032,2]
[377484122,1754426674671,122.51936665,0.00024032,2]
[377484123,1754426674693,377.48063335,0.00024032,2]
[377484124,1754426674720,500.0,0.00024032,2]
[377484125,1754426674746,225.67455254,0.00024032,2]
[377484126,1754426674773,500.0,0.00024032,2]
[377484127,1754426674801,500.0,0.00024032,2]
[377484128,1754426674828,500.0,0.00024032,2]
[377484129,1754426674856,500.0,0.00024032,2]
[377484130,1754426674884,500.0,0.00024032,2]
[377484131,1754426674911,500.0,0.00024032,2]
[377484132,1754426675025,500.0,0.00024032,2]
[377484133,1754426675081,500.0,0.00024032,2]
[377484134,1754426675112,500.0,0.00024032,2]
[377484135,1754426675143,400.0,0.00024032,2]
[377484136,1754426675170,190.43033329,0.00024032,2]
[377484137,1754426675197,500.0,0.00024032,2]
[377484138,1754426675235,500.0,0.00024032,2]
[377484139,1754426675263,500.0,0.00024032,2]
[377484140,1754426675294,500.0,0.00024032,2]
[377484141,1754426675323,500.0,0.00024032,2]
[377484142,1754426675351,500.0,0.00024032,2]
[377484143,1754426675379,500.0,0.00024032,2]
[377484144,1754426675414,500.0,0.00024032,2]
[377484145,1754426675443,500.0,0.00024032,2]
[377484146,1754426675478,500.0,0.00024032,2]
[377484147,1754426675519,500.0,0.00024032,2]
[377484148,1754426675549,500.0,0.00024032,2]
[377484149,1754426675579,500.0,0.00024032,2]
[377484150,1754426675611,500.0,0.00024032,2]
[377484151,1754426675642,500.0,0.00024032,2]
[377484152,1754426675670,500.0,0.00024032,2]
[377484153,1754426675697,500.0,0.00024032,2]
[377484154,1754426675727,500.0,0.00024032,2]
[377484155,1754426675756,500.0,0.00024032,2]
[377484156,1754426675786,500.0,0.00024032,2]
[377484157,1754426675814,500.0,0.00024032,2]
[377484158,1754426675843,500.0,0.00024032,2]
[377484159,1754426675871,306.41448082,0.00024032,2]
[377484160,1754426675894,51.25338831,0.00024032,2]
[377484161,1754426675922,500.0,0.00024032,2]
[377484162,1754426675959,500.0,0.00024032,2]
[377484163,1754426675987,500.0,0.00024032,2]
[377484164,1754426676014,500.0,0.00024032,2]
[377484165,1754426676041,500.0,0.00024032,2]
[377484166,1754426676068,500.0,0.00024032,2]
[377484167,1754426676099,500.0,0.00024032,2]
[377484168,1754426676127,500.0,0.00024032,2]
[377484169,1754426676163,500.0,0.00024032,2]
[377484170,1754426676191,500.0,0.00024032,2]
[377484171,1754426676220,301.67175924,0.00024032,2]
[377484172,1754426676248,500.0,0.00024032,2]
[377484173,1754426676275,500.0,0.00024032,2]
[377484174,1754426676303,500.0,0.00024032,2]
[377484175,1754426676331,500.0,0.00024032,2]
[377484176,1754426676358,500.0,0.00024032,2]
[377484177,1754426676387,500.0,0.00024032,2]
[377484178,1754426676414,500.0,0.00024032,2]
[377484179,1754426676441,500.0,0.00024032,2]
[377484180,1754426676475,500.0,0.00024032,2]
[377484181,1754426676506,500.0,0.00024032,2]
[377484182,1754426676534,500.0,0.00024032,2]
[377484183,1754426676560,500.0,0.00024032,2]
[377484184,1754426676587,500.0,0.00024032,2]
[377484185,1754426676615,500.0,0.00024032,2]
[377484186,1754426676642,500.0,0.00024032,2]
[377484187,1754426676671,500.0,0.00024032,2]
[377484188,1754426676698,500.0,0.00024032,2]
[377484189,1754426676727,650.0,0.00024032,2]
[377484190,1754426676759,500.0,0.00024032,2]
[377484191,1754426676788,500.0,0.00024032,2]
[377484192,1754426676818,500.0,0.00024032,2]
[377484193,1754426676848,500.0,0.00024032,2]
[377484194,1754426676875,500.0,0.00024032,2]
[377484195,1754426676904,497.07485245,0.00024032,2]
[377484196,1754426676926,2.92514755,0.00024032,2]
[377484197,1754426676954,500.0,0.00024032,2]
[377484198,1754426676983,500.0,0.00024032,2]
[377484199,1754426677014,500.0,0.00024032,2]
[377484200,1754426677041,500.0,0.00024032,2]
[377484201,1754426677072,500.0,0.00024032,2]
[377484202,1754426677099,500.0,0.00024032,2]
[377484203,1754426677126,500.0,0.00024032,2]
[377484204,1754426677158,500.0,0.00024032,2]
[377484205,1754426677186,500.0,0.00024032,2]
[377484206,1754426683583,500.0,0.00024032,2]
[377484207,1754426683620,1041.19620046,0.00024032,2]
[377484208,1754426683647,500.0,0.00024032,2]
[377484209,1754426683675,500.0,0.00024032,2]
[377484210,1754426683701,500.0,0.00024032,2]
[377484211,1754426683733,500.0,0.00024032,2]
[377484212,1754426683763,1041.19620046,0.00024032,2]
[377484213,1754426683790,500.0,0.00024032,2]
[377484214,1754426683819,500.0,0.00024032,2]
[377484215,1754426683848,1041.19620046,0.00024032,2]
[377484216,1754426683876,500.0,0.00024032,2]
[377484217,1754426683907,500.0,0.00024032,2]
[377484218,1754426683943,1041.19620046,0.00024032,2]
[377484219,1754426683971,500.0,0.00024032,2]
[377484220,1754426683998,500.0,0.00024032,2]
[377484221,1754426684026,500.0,0.00024032,2]
[377484222,1754426684057,1041.19620046,0.00024032,2]
[377484223,1754426684088,500.0,0.00024032,2]
[377484224,1754426684117,500.0,0.00024032,2]
[377484225,1754426684144,500.0,0.00024032,2]
[377484226,1754426684173,291.09385015,0.00024032,2]
[377484227,1754426684198,750.10235031,0.00024032,2]
[377484228,1754426684226,500.0,0.00024032,2]
[377484229,1754426684253,500.0,0.00024032,2]
[377484230,1754426684288,500.0,0.00024032,2]
[377484231,1754426684318,1041.19620046,0.00024032,2]